bitfinex-derivatives/quotes_SOLF0:USTF0_20260207
["timestamp","ask_amount","ask_price","bid_price","bid_amount"]
[1770503098567,8.60248789,88.281,88.241,66.45506102]
[1770503098766,8.60248789,88.28,88.241,66.45506102]
[1770503098966,8.60248789,88.279,88.241,66.45506102]
[1770503099166,8.60248789,88.278,88.241,66.45506102]
[1770503099369,8.60248789,88.277,88.241,66.45506102]
[1770503099560,76.52931988,88.286,88.241,66.45506102]
[1770503099756,8.61277461,88.285,88.241,66.45506102]
[1770503099957,8.61277461,88.284,88.241,66.45506102]
[1770503100168,8.61277461,88.283,88.241,66.45506102]
[1770503100371,8.61277461,88.282,88.241,66.45506102]
[1770503100569,8.61277461,88.281,88.241,66.45506102]
[1770503100770,76.52931988,88.297,88.251,66.87250774]
[1770503101069,76.52931988,88.295,88.251,66.87250774]
[1770503101270,76.52931988,88.293,88.251,66.87250774]
[1770503101466,76.52931988,88.291,88.251,66.87250774]
[1770503101668,8.61773571,88.29,88.251,66.87250774]
[1770503101865,8.61773571,88.289,88.251,66.87250774]
[1770503102064,8.61773571,88.288,88.251,66.87250774]
[1770503102268,8.61773571,88.287,88.251,66.87250774]
[1770503102463,8.61773571,88.286,88.251,66.87250774]
[1770503102663,8.61773571,88.285,88.251,66.87250774]
[1770503102858,8.61773571,88.284,88.251,66.87250774]
[1770503103058,8.61773571,88.283,88.251,66.87250774]
[1770503103258,8.61773571,88.282,88.251,66.87250774]
[1770503103463,8.61773571,88.281,88.251,66.87250774]
[1770503103758,8.61773571,88.28,88.251,66.87250774]
[1770503104068,76.52931988,88.291,88.251,66.87250774]
[1770503104372,8.61826924,88.29,88.251,66.87250774]
[1770503104570,8.61826924,88.289,88.251,66.87250774]
[1770503104772,8.61826924,88.288,88.251,66.87250774]
[1770503104967,8.61826924,88.287,88.251,66.87250774]
[1770503105172,8.61826924,88.286,88.251,66.87250774]
[1770503105372,8.61826924,88.285,88.251,66.87250774]
[1770503105569,8.61826924,88.284,88.251,66.87250774]
[1770503105871,8.61826924,88.283,88.251,66.87250774]
[1770503106070,8.61826924,88.282,88.251,66.87250774]
[1770503106274,77.84915512,88.317,88.271,58.43709613]
[1770503107969,77.84915512,88.317,88.261,57.17426465]
[1770503108163,77.84915512,88.309,88.261,57.17426465]
[1770503108367,77.84915512,88.309,88.271,57.17426465]
[1770503118289,71.94787181,88.307,88.271,57.17426465]
[1770503118488,8.56857743,88.306,88.271,57.17426465]
[1770503118684,8.56857743,88.305,88.271,57.17426465]
[1770503118883,8.56857743,88.304,88.271,57.17426465]
[1770503119080,8.56857743,88.303,88.271,57.17426465]
[1770503119387,71.94787181,88.317,88.265,10.2034]
[1770503119388,71.94787181,88.317,88.28,61.63898289]
[1770503121181,71.94787181,88.34,88.3,61.58848689]
[1770503123581,71.94787181,88.34,88.31,3.73543934]
[1770503125090,71.94787181,88.357,88.311,57.94092448]
[1770503125294,71.94787181,88.357,88.32,61.67636382]
[1770503126494,71.94787181,88.357,88.32,57.94092448]
[1770503131600,71.94787181,88.357,88.32,61.67636382]
[1770503132402,82.13947181,88.368,88.32,61.67636382]
[1770503132903,82.13947181,88.368,88.33,3.73543934]
[1770503133505,71.94787181,88.368,88.34,3.73543934]
[1770503142807,71.72562706,88.383,88.341,56.07041518]
[1770503143612,71.72562706,88.393,88.351,56.07041518]
[1770503144605,71.72562706,88.389,88.331,56.41327779]
[1770503145713,71.72562706,88.386,88.331,56.41327779]
[1770503146815,71.72562706,88.384,88.331,56.41327779]
[1770503147111,71.72562706,88.384,88.34,3.73543934]
[1770503147414,71.72562706,88.384,88.331,56.41327779]
[1770503151917,71.72562706,88.384,88.35,3.72597443]
[1770503154515,71.72562706,88.384,88.341,58.71053326]
[1770503155721,71.72562706,88.382,88.341,58.71053326]
[1770503157223,81.91582706,88.38,88.341,58.71053326]
[1770503158322,81.91582706,88.38,88.3,442.62169559]
[1770503158323,71.72562706,88.369,88.301,59.18178013]
[1770503158525,71.72562706,88.367,88.311,59.18178013]
[1770503158720,71.72562706,88.365,88.311,59.18178013]
[1770503159024,8.50293819,88.366,88.311,59.18178013]
[1770503159025,71.72562706,88.363,88.311,59.18178013]
[1770503159415,71.72562706,88.361,88.311,59.18178013]
[1770503159612,71.72562706,88.361,88.321,59.18178013]
[1770503160622,71.72562706,88.361,88.274,33.98]
[1770503160623,71.72562706,88.356,88.274,33.98]
[1770503160824,71.72562706,88.339,88.28,3.72597443]
[1770503161718,81.92202706,88.326,88.27,3.72597443]
[1770503162426,81.92302706,88.318,88.26,3.72597443]
[1770503162724,81.92302706,88.318,88.261,41.40185935]
[1770503163324,3.72597443,88.31,88.261,41.40185935]
[1770503163514,71.72562706,88.299,88.236,41.40185935]
[1770503163718,71.72562706,88.299,88.197,33.98]
[1770503163719,71.72562706,88.289,88.24,41.40185935]
[1770503164019,71.72562706,88.279,88.227,43.37818703]
[1770503164521,71.72562706,88.279,88.231,43.37818703]
[1770503165827,81.92752706,88.279,88.231,43.37818703]
[1770503168026,71.72562706,88.279,88.24,47.07628215]
[1770503170729,76.37325021,88.304,88.251,42.74717746]
[1770503171035,76.37325021,88.304,88.26,46.47315189]
[1770503173736,76.37325021,88.304,88.27,3.72597443]
[1770503175834,76.37325021,88.304,88.26,42.74717746]
[1770503175835,76.37325021,88.304,88.26,46.47315189]
[1770503179143,76.37325021,88.304,88.27,3.72597443]
[1770503188251,76.37325021,88.304,88.26,46.47315189]
[1770503195151,76.43449738,88.318,88.29,3.72597443]
[1770503195757,75.59528862,88.329,88.29,41.3684114]
[1770503195963,75.59528862,88.329,88.3,3.72597443]
[1770503196558,75.59528862,88.341,88.31,3.72597443]
[1770503200560,75.59528862,88.341,88.3,41.3684114]
[1770503202459,75.59528862,88.341,88.242,158.7613]
[1770503202460,75.59528862,88.339,88.289,36.543545]
[1770503202757,75.59528862,88.337,88.289,36.543545]
[1770503203057,75.59528862,88.337,88.229,33.98]
[1770503203058,3.72597443,88.31,88.263,36.29301471]
[1770503203254,75.59528862,88.309,88.263,36.29301471]
[1770503205557,75.59528862,88.309,88.22,33.98]
[1770503205558,75.59528862,88.309,88.27,39.45554902]
[1770503207554,75.59528862,88.299,88.245,35.32648395]
[1770503207762,75.59528862,88.297,88.245,35.32648395]
[1770503208155,75.59528862,88.289,88.245,35.32648395]
[1770503214567,75.59528862,88.289,88.234,10.2069]
[1770503214763,75.59528862,88.279,88.233,33.12989177]
[1770503216260,79.3289369,88.27,88.233,33.12989177]
[1770503216462,79.3289369,88.27,88.221,32.86990879]
[1770503217656,75.59528862,88.27,88.221,32.86990879]
[1770503231276,69.21554903,88.287,88.234,28.67031446]
[1770503231474,69.21554903,88.287,88.241,28.67031446]
[1770503233775,69.21554903,88.287,88.242,10.206]
[1770503236979,67.9816054,88.309,88.25,30.19819622]
[1770503237178,67.9816054,88.309,88.26,3.73364828]
[1770503239479,67.9816054,88.309,88.26,30.01215503]
[1770503246084,67.9816054,88.309,88.26,26.27850675]
[1770503247188,67.9816054,88.307,88.26,26.27850675]
[1770503247486,67.9816054,88.305,88.26,26.27850675]
[1770503249480,67.9816054,88.305,88.26,30.01215503]
[1770503249988,67.9816054,88.305,88.26,26.27850675]
[1770503251685,67.9816054,88.305,88.262,24.77238182]
[1770503252776,67.9816054,88.305,88.264,24.52188955]
[1770503256991,64.92799425,88.299,88.254,24.03253098]
[1770503264493,64.92799425,88.289,88.245,23.26023563]
[1770503269184,64.92799425,88.289,88.251,22.67087241]
[1770503269396,64.92799425,88.309,88.26,3.73194249]
[1770503269593,64.92799425,88.309,88.261,22.5678208]
[1770503275294,64.92799425,88.309,88.27,3.73194249]
[1770503275600,64.92799425,88.309,88.271,21.49089407]
[1770503280502,64.92799425,88.309,88.28,3.73194249]
[1770503282005,64.92799425,88.309,88.271,21.49089407]
[1770503288406,64.92799425,88.309,88.27,3.73194249]
[1770503288710,64.92799425,88.309,88.264,10.2035]
[1770503290511,64.92799425,88.309,88.27,3.73194249]
[1770503294213,64.92799425,88.309,88.271,20.20283398]
[1770503296717,63.15851134,88.343,88.25,33.98]
[1770503296919,63.15851134,88.339,88.281,19.27620044]
[1770503297215,63.15851134,88.337,88.281,19.27620044]
[1770503297417,63.15851134,88.335,88.281,19.27620044]
[1770503297821,63.15851134,88.319,88.27,19.20331955]
[1770503298121,63.15851134,88.319,88.27,22.93526204]
[1770503303920,63.15851134,88.319,88.273,17.8216035]
[1770503312241,63.15851134,88.319,88.262,27.37886711]
[1770503312832,63.15851134,88.319,88.263,17.110298]
[1770503313740,63.15851134,88.319,88.266,10.2032]
[1770503314439,63.15851134,88.317,88.266,10.2032]
[1770503315040,63.15851134,88.317,88.267,17.04599508]
[1770503315742,63.15851134,88.317,88.27,3.73194249]
[1770503317042,63.15851134,88.317,88.267,17.04599508]
[1770503317840,63.15851134,88.317,88.27,3.73194249]
[1770503318045,63.15851134,88.317,88.29,3.73194249]
[1770503324148,63.15851134,88.317,88.256,34.01]
[1770503324149,63.15851134,88.317,88.285,13.9624916]
[1770503324341,63.15851134,88.317,88.29,3.73194249]
[1770503325448,63.15851134,88.317,88.285,13.9624916]
[1770503326452,63.15851134,88.317,88.3,3.73194249]
[1770503326849,67.5024361,88.349,88.3,3.73194249]
[1770503327050,67.5024361,88.347,88.3,17.15394169]
[1770503327240,67.5024361,88.345,88.3,17.15394169]
[1770503327445,67.5024361,88.343,88.3,17.15394169]
[1770503327647,67.5024361,88.341,88.3,17.15394169]
[1770503328455,67.5024361,88.341,88.31,3.73194249]
[1770503329554,67.5024361,88.341,88.31,3.7276489]
[1770503337854,67.5024361,88.341,88.3,3.7276489]
[1770503340556,67.5024361,88.341,88.31,3.7276489]
[1770503342957,3.7276489,88.38,88.33,3.7276489]
[1770503343159,8.46730109,88.379,88.33,3.7276489]
[1770503343354,3.7276489,88.39,88.33,3.7276489]
[1770503344261,8.46413003,88.389,88.33,3.7276489]
[1770503344555,3.7276489,88.39,88.33,3.7276489]
[1770503344758,8.46060791,88.389,88.33,3.7276489]
[1770503344954,67.5024361,88.388,88.33,3.7276489]
[1770503347558,60.71057707,88.379,88.33,3.7276489]
[1770503347764,60.71057707,88.379,88.326,12.52790917]
[1770503347964,60.35584851,88.369,88.326,12.52790917]
[1770503348260,60.35584851,88.369,88.32,3.7276489]
[1770503351655,60.35584851,88.369,88.33,3.7276489]
[1770503351862,60.35584851,88.369,88.34,3.7276489]
[1770503352059,60.35584851,88.369,88.33,3.7276489]
[1770503352866,60.35584851,88.369,88.33,14.19838431]
[1770503356469,60.35584851,88.369,88.33,10.47073541]
[1770503362368,60.35584851,88.369,88.32,3.7276489]
[1770503373467,60.35584851,88.369,88.32,12.16340022]
[1770503374273,60.35584851,88.369,88.32,8.43575132]
[1770503374871,60.35584851,88.369,88.34,3.7276489]
[1770503375784,60.35584851,88.369,88.341,10.1946]
[1770503381474,61.55756129,88.399,88.343,10.1944]
[1770503384079,61.55756129,88.397,88.343,10.1944]
[1770503384381,61.55756129,88.397,88.342,7.20730713]
[1770503384382,61.55756129,88.395,88.342,7.20730713]
[1770503385179,61.55756129,88.389,88.342,7.20730713]
[1770503387179,61.55756129,88.379,88.32,3.7276489]
[1770503387476,61.55756129,88.377,88.32,3.7276489]
[1770503387676,61.55756129,88.369,88.319,6.46509823]
[1770503391883,61.55756129,88.369,88.32,3.72702631]
[1770503394781,61.55756129,88.369,88.321,6.48244852]
[1770503396282,3.72702631,88.38,88.33,3.72702631]
[1770503396487,61.55756129,88.379,88.341,6.33073969]
[1770503397688,61.55756129,88.379,88.341,16.52533969]
[1770503398982,61.55756129,88.379,88.341,10.1946]
[1770503399193,61.55756129,88.379,88.342,4.97233005]
[1770503399887,61.55756129,88.379,88.35,3.72702631]
[1770503400189,61.55756129,88.379,88.36,3.72702631]
[1770503400588,61.55756129,88.379,88.35,3.72702631]
[1770503402091,61.55756129,88.379,88.36,3.72702631]
[1770503402390,61.66174418,88.391,88.36,3.72702631]
[1770503402789,61.66174418,88.391,88.37,3.72702631]
[1770503403191,57.14174418,88.391,88.37,3.72702631]
[1770503404891,3.72702631,88.44,88.37,3.72702631]
[1770503405190,20.90813371,88.489,88.324,34.01]
[1770503405191,8.5183554,88.439,88.39,3.72702631]
[1770503405394,10.1811,88.459,88.39,3.72702631]
[1770503405689,8.51211931,88.458,88.4,3.72702631]
[1770503405889,8.51211931,88.457,88.4,3.72702631]
[1770503406089,8.51211931,88.456,88.4,3.72702631]
[1770503406286,18.69371931,88.455,88.4,3.72702631]
[1770503406486,8.51211931,88.454,88.4,3.72702631]
[1770503406678,8.51211931,88.453,88.4,3.72702631]
[1770503406879,60.43543099,88.452,88.4,3.72702631]
[1770503408987,60.43543099,88.452,88.41,3.72702631]
[1770503409588,60.43543099,88.452,88.4,3.72702631]
[1770503409786,3.72702631,88.45,88.387,10.1893]
[1770503410094,60.43543099,88.449,88.4,3.72702631]
[1770503410893,60.43543099,88.439,88.38,3.72702631]
[1770503411191,60.43543099,88.429,88.377,25.80181563]
[1770503411395,60.43543099,88.419,88.36,3.72702631]
[1770503411697,60.43543099,88.399,88.34,3.72702631]
[1770503411898,60.43543099,88.399,88.34,29.68083625]
[1770503412799,60.43543099,88.399,88.344,35.71871013]
[1770503412991,60.43543099,88.399,88.35,3.72702631]
[1770503413593,62.89719263,88.379,88.317,25.52441013]
[1770503413895,62.89719263,88.379,88.34,3.72702631]
[1770503414288,62.89719263,88.379,88.335,10.1953]
[1770503415294,62.89719263,88.379,88.331,23.15137261]
[1770503416191,62.89719263,88.379,88.319,24.7060671]
[1770503418193,62.89719263,88.369,88.319,24.7060671]
[1770503421600,10.54507418,88.412,88.285,34.01]
[1770503421601,62.89719263,88.411,88.331,22.65074662]
[1770503421802,62.89719263,88.411,88.284,439.81695574]
[1770503421803,62.89719263,88.409,88.36,26.37777293]
[1770503422002,62.89719263,88.409,88.36,22.65074662]
[1770503422704,62.89719263,88.409,88.35,3.72702631]
[1770503422905,62.89719263,88.409,88.351,10.1934]
[1770503423110,62.89719263,88.409,88.36,3.72702631]
[1770503423507,62.89719263,88.409,88.361,22.5042335]
[1770503426213,62.89719263,88.409,88.37,3.72702631]
[1770503427010,62.89719263,88.409,88.361,22.5042335]
[1770503430808,62.89719263,88.409,88.37,3.72702631]
[1770503431113,62.89719263,88.409,88.38,3.72702631]
[1770503435910,55.42030919,88.439,88.4,3.72702631]
[1770503437024,55.42030919,88.439,88.41,3.72702631]
[1770503438822,55.42030919,88.439,88.39,3.72702631]
[1770503439621,55.42030919,88.439,88.382,16.11739583]
[1770503440725,55.42030919,88.439,88.39,3.72702631]
[1770503443228,55.42030919,88.429,88.368,16.28975846]
[1770503443429,55.42030919,88.419,88.36,3.72702631]
[1770503443628,55.42030919,88.419,88.36,20.01678477]
[1770503444330,55.42030919,88.419,88.36,16.28975846]
[1770503444527,55.42030919,88.419,88.36,20.01678477]
[1770503444727,55.42030919,88.419,88.364,10.192]
[1770503445731,55.42030919,88.419,88.36,20.01678477]
[1770503446035,55.42030919,88.409,88.354,10.1931]
[1770503446535,55.42030919,88.409,88.355,16.88669788]
[1770503447328,55.42030919,88.409,88.343,16.68525268]
[1770503447838,55.42030919,88.399,88.343,16.68525268]
[1770503449134,55.42030919,88.389,88.343,16.68525268]
[1770503449331,55.42030919,88.389,88.33,13.92292631]
[1770503449332,55.42030919,88.389,88.331,15.91818003]
[1770503449536,55.42030919,88.379,88.32,15.91818003]
[1770503450638,55.42030919,88.379,88.32,19.64520634]
[1770503451731,55.42030919,88.379,88.32,15.91818003]
[1770503454743,55.42030919,88.379,88.33,3.72646669]
[1770503454931,55.42030919,88.379,88.331,14.98633805]
[1770503455329,55.42030919,88.379,88.34,3.72646669]
[1770503455542,55.42030919,88.379,88.34,18.71280474]
[1770503461747,55.42030919,88.379,88.33,16.71085505]
[1770503461946,55.42030919,88.379,88.331,12.92110502]
[1770503468358,57.03589794,88.383,88.333,11.84641095]
[1770503468657,57.03589794,88.383,88.341,11.84641095]
[1770503471155,57.03589794,88.383,88.287,21.14349235]
[1770503471156,57.03589794,88.399,88.37,3.72646669]
[1770503475366,57.03589794,88.399,88.38,3.72646669]
[1770503475567,51.79785829,88.432,88.39,3.72646669]
[1770503475762,51.79785829,88.432,88.4,3.72646669]
[1770503476065,51.79785829,88.432,88.41,3.72646669]
[1770503476662,51.79785829,88.432,88.42,3.72646669]
[1770503477158,10.1794,88.474,88.42,3.72646669]
[1770503477874,10.178,88.486,88.42,3.72646669]
[1770503478057,3.72646669,88.48,88.42,3.72646669]
[1770503478865,3.72646669,88.51,88.44,59.33993297]
[1770503479063,51.79785829,88.499,88.44,59.33993297]
[1770503479266,51.79785829,88.499,88.44,3.72646669]
[1770503483974,51.79785829,88.489,88.43,3.72646669]
[1770503484170,3.72646669,88.44,88.385,55.61346628]
[1770503484372,51.79785829,88.439,88.385,55.61346628]
[1770503488980,51.79785829,88.439,88.323,20.3934]
[1770503488981,51.79785829,88.439,88.361,54.97377957]
[1770503489777,51.79785829,88.437,88.361,54.97377957]
[1770503495280,51.79785829,88.437,88.363,50.25029539]
[1770503496783,51.79785829,88.437,88.369,47.42763593]
[1770503499584,51.79785829,88.437,88.371,46.43309585]
[1770503502688,50.20553286,88.435,88.371,46.43309585]
[1770503502891,50.20553286,88.433,88.359,43.74266151]
[1770503503286,10.1862,88.415,88.341,43.73730289]
[1770503503591,50.20553286,88.414,88.341,43.73730289]
[1770503504196,10.1868,88.41,88.342,10.1945]
[1770503504387,50.20553286,88.409,88.343,43.32869159]
[1770503504789,50.20553286,88.409,88.32,34.01]
[1770503504790,50.20553286,88.409,88.366,42.65706307]
[1770503505688,50.20553286,88.409,88.369,41.98593593]
[1770503507296,50.20553286,88.434,88.369,41.98593593]
[1770503507989,50.20553286,88.434,88.38,9.30252844]
[1770503508296,50.20553286,88.434,88.381,39.92185294]
[1770503509593,50.20553286,88.434,88.4,3.72021417]
[1770503512490,50.20553286,88.434,88.39,3.72021417]
[1770503512993,50.20553286,88.434,88.381,39.92185294]
[1770503514393,50.20553286,88.429,88.381,39.92185294]
[1770503518104,50.20553286,88.419,88.364,34.44976875]
[1770503519292,50.20553286,88.419,88.37,3.72207829]
[1770503519491,50.20553286,88.419,88.37,37.59473541]
[1770503525498,50.20553286,88.419,88.37,33.87265712]
[1770503526000,50.20553286,88.419,88.381,29.03314654]
[1770503527097,50.20553286,88.419,88.39,3.72207829]
[1770503527303,39.28843287,88.449,88.41,3.72207829]
[1770503527603,39.28843287,88.447,88.401,28.51594643]
[1770503527798,39.28843287,88.445,88.401,28.51594643]
[1770503528104,39.28843287,88.445,88.41,3.72207829]
[1770503529104,39.28843287,88.445,88.401,28.51594643]
[1770503542723,39.28843287,88.445,88.39,34.17309978]
[1770503543119,39.28843287,88.445,88.4,3.72207829]
[1770503546519,35.22769086,88.463,88.43,3.72207829]
[1770503546725,35.22769086,88.463,88.44,3.72207829]
[1770503547416,35.22769086,88.474,88.45,3.72207829]
[1770503548117,35.22769086,88.474,88.432,18.62893168]
[1770503549115,35.22769086,88.474,88.44,3.72207829]
[1770503557021,35.22769086,88.474,88.432,18.62893168]
[1770503558126,35.22769086,88.474,88.44,3.72207829]
[1770503558426,35.22769086,88.474,88.43,3.72207829]
[1770503566331,31.43939764,88.469,88.41,3.72207829]
[1770503566536,31.43939764,88.467,88.41,3.72207829]
[1770503566737,31.43939764,88.465,88.41,3.72207829]
[1770503567638,31.43939764,88.463,88.41,3.72207829]
[1770503567834,31.43939764,88.46,88.41,3.72207829]
[1770503569838,31.43939764,88.458,88.41,3.72207829]
[1770503571745,31.43939764,88.458,88.411,10.24279077]
[1770503571946,31.43939764,88.458,88.43,3.72207829]
[1770503572540,31.43939764,88.458,88.421,10.1111122]
[1770503572740,31.43939764,88.458,88.43,3.72207829]
[1770503575453,31.43939764,88.458,88.43,3.71694527]
[1770503577246,31.43939764,88.481,88.45,3.71694527]
[1770503582154,31.43939764,88.481,88.44,3.71694527]
[1770503582344,31.43939764,88.481,88.431,6.82162067]
[1770503584453,31.43939764,88.479,88.431,6.82162067]
[1770503585249,31.43939764,88.477,88.431,6.82162067]
[1770503589557,31.43939764,88.477,88.441,4.69999777]
[1770503589759,31.43939764,88.477,88.45,3.71694527]
[1770503594062,31.43939764,88.477,88.441,4.69999777]
[1770503600558,31.43939764,88.477,88.44,3.71694527]
[1770503604660,13.8584364,88.518,88.38,28.01737203]
[1770503604661,25.73434088,88.503,88.46,3.71694527]
[1770503604870,25.73434088,88.501,88.46,3.71694527]
[1770503605059,25.73439258,88.499,88.46,3.71694527]
[1770503605365,25.73439258,88.497,88.46,3.71694527]
[1770503605564,25.73439258,88.495,88.46,3.71694527]
[1770503605761,3.71694527,88.52,88.46,3.71694527]
[1770503605762,25.73439258,88.493,88.46,3.71694527]
[1770503607068,25.73439258,88.493,88.451,1.28945352]
[1770503607264,25.73439258,88.493,88.45,3.71694527]
[1770503607473,25.73439258,88.493,88.44,4.13996581]
[1770503607670,8.5405253,88.492,88.397,0.23003463]
[1770503607967,10.54507418,88.501,88.41,3.71694527]
[1770503607968,25.87129908,88.469,88.41,3.71694527]
[1770503608170,25.84247331,88.467,88.401,0.28768617]
[1770503608371,25.84247331,88.465,88.401,0.28768617]
[1770503608569,25.84247331,88.463,88.401,0.28768617]
[1770503608770,25.84247331,88.461,88.41,3.71694527]
[1770503608965,25.84247331,88.459,88.41,3.71694527]
[1770503609165,25.84212651,88.457,88.41,3.71694527]
[1770503609366,25.84212651,88.455,88.401,0.28768617]
[1770503609569,25.84212651,88.453,88.401,0.28768617]
[1770503614081,25.84212651,88.453,88.41,3.71694527]
[1770503617080,25.84212651,88.453,88.42,3.71694527]
[1770503628787,25.70499329,88.463,88.43,3.71694527]
[1770503628983,25.70499329,88.463,88.361,158.5484]
[1770503628984,25.70499329,88.463,88.44,3.71694527]
[1770503629286,3.71694527,88.5,88.44,3.71694527]
[1770503629287,25.70512628,88.499,88.44,3.71694527]
[1770503629588,301.8407539,88.504,88.376,28.01737203]
[1770503629589,3.71694527,88.48,88.382,33.95]
[1770503629793,25.70512628,88.478,88.43,3.71694527]
[1770503629997,25.70512628,88.478,88.42,3.71694527]
[1770503630199,25.70512628,88.478,88.43,3.71694527]
[1770503630693,25.70786089,88.476,88.42,3.71694527]
[1770503630897,25.70798292,88.459,88.4,3.71694527]
[1770503631697,25.70798292,88.459,88.403,10.1874]
[1770503632194,25.64160346,88.449,88.39,3.71694527]
[1770503632397,25.64160346,88.447,88.391,10.1888]
[1770503634002,3.71694527,88.44,88.373,10.1909]
[1770503634295,25.54235677,88.439,88.38,3.71694527]
[1770503635793,25.54296106,88.429,88.373,10.1909]
[1770503635998,25.54296106,88.429,88.38,3.71694527]
[1770503637096,25.46600438,88.419,88.363,10.1921]
[1770503637709,25.46600438,88.417,88.363,10.1921]
[1770503640199,25.4961299,88.399,88.34,3.7232693]
[1770503642190,25.4961299,88.399,88.35,3.7232693]
[1770503644598,25.37959066,88.379,88.329,418.74054361]
[1770503645902,25.37959066,88.379,88.33,3.7232693]
[1770503648300,25.37959066,88.379,88.329,418.74054361]
[1770503648804,25.37959066,88.379,88.33,3.7232693]
[1770503652107,25.37959066,88.379,88.329,418.74054361]
[1770503653014,25.40697266,88.369,88.329,418.74054361]
[1770503659721,10.1916,88.368,88.329,418.74054361]
[1770503659923,25.46164869,88.367,88.32,3.7232693]
[1770503660425,25.44930016,88.366,88.32,3.7232693]
[1770503661126,25.44930016,88.366,88.31,3.7232693]
[1770503661625,25.44998366,88.363,88.31,3.7232693]
[1770503662730,25.44921142,88.36,88.31,3.7232693]
[1770503663726,25.44988257,88.348,88.31,3.7232693]
[1770503664033,25.44988257,88.348,88.3,3.7232693]
[1770503664235,25.45600478,88.346,88.3,3.7232693]
[1770503664728,25.45600478,88.346,88.31,3.7232693]
[1770503664927,25.45600478,88.346,88.32,3.7232693]
[1770503666132,25.54452189,88.371,88.33,3.7232693]
[1770503667840,25.54496219,88.361,88.33,3.7232693]
[1770503673336,25.54496219,88.361,88.32,3.7232693]
[1770503674732,25.54496219,88.361,88.33,3.7232693]
[1770503684345,25.64618889,88.359,88.33,3.7232693]
[1770503684547,8.80844023,88.358,88.33,3.7232693]
[1770503684841,25.64618889,88.356,88.33,3.7232693]
[1770503685145,25.64618889,88.356,88.32,3.7232693]
[1770503685334,25.6463726,88.354,88.32,3.7232693]
[1770503685537,25.6463726,88.352,88.32,3.7232693]
[1770503686143,25.63420096,88.35,88.32,3.7232693]
[1770503686347,8.81023013,88.349,88.32,3.7232693]
[1770503686540,8.81347386,88.348,88.32,3.7232693]
[1770503686845,25.63420096,88.35,88.32,3.7232693]
[1770503688343,34.4409502,88.349,88.32,3.7232693]
[1770503688548,25.62178567,88.349,88.31,3.7232693]
[1770503689149,8.8231188,88.348,88.31,3.7232693]
[1770503689348,25.62178567,88.349,88.31,3.7232693]
[1770503689546,34.44512348,88.348,88.31,3.7232693]
[1770503689745,25.62200468,88.348,88.31,3.7232693]
[1770503690042,25.62596563,88.367,88.31,3.7232693]
[1770503690349,25.62596563,88.365,88.32,3.7232693]
[1770503690550,25.62596563,88.363,88.32,3.7232693]
[1770503690751,25.62596563,88.361,88.32,3.7232693]
[1770503690954,25.62596563,88.359,88.32,3.7232693]
[1770503691142,25.62617326,88.357,88.32,3.7232693]
[1770503691343,8.8229349,88.356,88.32,3.7232693]
[1770503691546,8.8229349,88.355,88.32,3.7232693]
[1770503691747,8.8229349,88.354,88.32,3.7232693]
[1770503691948,25.62617326,88.357,88.32,3.7232693]
[1770503692146,8.82419404,88.356,88.32,3.7232693]
[1770503692347,8.82419404,88.355,88.32,3.7232693]
[1770503692546,8.82419404,88.354,88.32,3.7232693]
[1770503692745,25.62617326,88.357,88.32,3.7232693]
[1770503692945,8.82553597,88.356,88.32,3.7232693]
[1770503693148,25.62617326,88.357,88.32,3.7232693]
[1770503693149,8.82553597,88.355,88.32,3.7232693]
[1770503693347,8.82553597,88.354,88.32,3.7232693]
[1770503693548,8.82553597,88.353,88.32,3.7232693]
[1770503693747,25.62617326,88.357,88.32,3.7232693]
[1770503693949,8.8270275,88.356,88.32,3.7232693]
[1770503694254,8.8270275,88.355,88.32,3.7232693]
[1770503694446,8.8270275,88.354,88.32,3.7232693]
[1770503694647,8.8270275,88.353,88.32,3.7232693]
[1770503694958,8.8270275,88.352,88.32,3.7232693]
[1770503695158,8.82992715,88.351,88.32,3.7232693]
[1770503695349,25.62617326,88.357,88.32,3.7232693]
[1770503695550,8.82992715,88.356,88.32,3.7232693]
[1770503695852,8.82992715,88.355,88.32,3.7232693]
[1770503696058,8.82992715,88.354,88.32,3.7232693]
[1770503696351,8.82992715,88.353,88.32,3.7232693]
[1770503696554,8.82992715,88.352,88.32,3.7232693]
[1770503696752,8.82992715,88.351,88.32,3.7232693]
[1770503696955,8.82992715,88.35,88.32,3.7232693]
[1770503697149,25.62617326,88.357,88.32,3.7232693]
[1770503697346,25.63904018,88.355,88.32,3.7232693]
[1770503697549,8.80547515,88.354,88.32,3.72670902]
[1770503697747,25.63904018,88.355,88.32,3.72670902]
[1770503697748,8.80547515,88.353,88.32,3.72670902]
[1770503697950,8.80547515,88.352,88.32,3.72670902]
[1770503698250,25.63753299,88.35,88.32,3.72670902]
[1770503699254,8.80572645,88.349,88.32,3.72670902]
[1770503699455,25.63753299,88.35,88.32,3.72670902]
[1770503699646,8.80572645,88.349,88.32,3.72670902]
[1770503699845,25.63753299,88.35,88.32,3.72670902]
[1770503700051,8.8057272,88.349,88.32,3.72670902]
[1770503700247,25.63753299,88.35,88.32,3.72670902]
[1770503700447,8.80570686,88.349,88.32,3.72670902]
[1770503700648,25.63753299,88.35,88.32,3.72670902]
[1770503700849,8.80570686,88.349,88.32,3.72670902]